Workbook

Sheet Goal.Global
A1: Block | B1: Validator 1 | E1: Validator 2 | H1: Validator 3 | K1: Tot.Powr | L1: Fees
B2: Power | C2: Withdrawal | D2: Pool | E2: Power | F2: Withdrawal | G2: Pool | H2: Power | I2: Withdrawal | J2: Pool | L2: IN | M2: Sum IN | N2: Sum Pools | O2: Withdrawn | P2: Sum Withdrawn
A3: 0 | B3: =Goal.Val1!P3 -> 10 | C3: =Goal.Val1!Q3 -> 0 | D3: =Goal.Val1!R3 -> 0.0000 | E3: 20 | G3: 0.0000 | H3: 30 | J3: 0.0000 | K3: =B3+E3+H3 -> 60
A4: 1 | B4: =Goal.Val1!P4 -> 10 | C4: =Goal.Val1!Q4 -> 0 | D4: =Goal.Val1!R4 -> 0.1028 | E4: =E3 -> 20 | G4: =G3+E4/$K4*$L4-F4 -> 0.2057 | H4: =H3 -> 30 | J4: =J3+H4/$K4*$L4-I4 -> 0.3085 | K4: 60 | L4: 0.6171 | M4: =L4+M3 -> 0.6171 | N4: =D4+G4+J4 -> 0.6171 | O4: =C4+F4+I4 -> 0.0000 | P4: =O4+P3 -> 0.0000
A5: 2 | B5: =Goal.Val1!P5 -> 10 | C5: =Goal.Val1!Q5 -> 0 | D5: =Goal.Val1!R5 -> 0.2682 | E5: 20 | G5: 0.5364 | H5: 30 | J5: 0.8046 | K5: 60 | L5: 0.9922 | M5: 1.6093 | N5: 1.6093 | O5: 0.0000 | P5: 0.0000
A6: 3 | B6: =Goal.Val1!P6 -> 15 | C6: =Goal.Val1!Q6 -> 0 | D6: =Goal.Val1!R6 -> 0.2746 | E6: 20 | G6: 0.5449 | H6: 30 | J6: 0.8174 | K6: 65 | L6: 0.0277 | M6: 1.6369 | N6: 1.6369 | O6: 0.0000 | P6: 0.0000
A7: 4 | B7: =Goal.Val1!P7 -> 15 | C7: =Goal.Val1!Q7 -> 0.10 | D7: =Goal.Val1!R7 -> 0.1913 | E7: 20 | G7: 0.5672 | H7: 30 | J7: 0.8507 | K7: 65 | L7: 0.0723 | M7: 1.7092 | N7: 1.6092 | O7: 0.1000 | P7: 0.1000
A8: 5 | B8: =Goal.Val1!P8 -> 15 | C8: =Goal.Val1!Q8 -> 0 | D8: =Goal.Val1!R8 -> 0.2143 | E8: 20 | G8: 0.5979 | H8: 30 | J8: 0.8969 | K8: 65 | L8: 0.1000 | M8: 1.8092 | N8: 1.7092 | O8: 0.0000 | P8: 0.1000

Sheet Goal.Val1
A1: Block | C1: Delegator 1 | H1: Delegator 2 | M1: Delegator 3 | P1: SUM POWER | Q1: SUM WITHDRAW | R1: SUM POOL | S1: SUM COMMISSION
B2: commission | C2: Power | D2: Del Withdrawal | E2: To Delegator | F2: To Commission | G2: Pool | H2: Power | I2: Del Withdrawal | J2: To Delegator | K2: To Commission | L2: Pool | M2: Power | N2: Withdrawal | O2: Pool
A3: 0 | B3: 10.00% | C3: 10 | G3: 0.0000 | H3: 0 | L3: 0.0000 | M3: 0 | O3: 0.0000 | P3: =C3+H3+M3 -> 10 | Q3: 0.0000 | R3: =G3+L3+O3 -> 0.0000 | S3: =F3+K3 -> 0
A4: 1 | B4: 10.00% | C4: =C3 -> 10 | E4: =E3+C4/Goal.Global!$K4*Goal.Global!$L4*(1-$B4)-D4 -> 0.0926 | F4: =F3+C4/Goal.Global!$K4*Goal.Global!$L4*($B4) -> 0.0103 | G4: =E4+F4 -> 0.1028 | H4: 0 | J4: =J3+H4/Goal.Global!$K4*Goal.Global!$L4*(1-$B4)-I4 -> 0.0000 | K4: =K3+H4/Goal.Global!$K4*Goal.Global!$L4*($B4) -> 0.0000 | L4: =L3+H4/Goal.Global!$K4*Goal.Global!$L4-I4 -> 0.0000 | M4: 0 | O4: =O3+M4/Goal.Global!$K4*Goal.Global!$L4-N4 -> 0.0000 | P4: =C4+H4+M4 -> 10 | Q4: 0.0000 | R4: 0.1028 | S4: 0.0103
A5: 2 | B5: 10.00% | C5: 10 | E5: =E4+C5/Goal.Global!$K5*Goal.Global!$L5*(1-$B5)-D5 -> 0.2414 | F5: =F4+C5/Goal.Global!$K5*Goal.Global!$L5*($B5) -> 0.0268 | G5: 0.2682 | H5: 0 | J5: =J4+H5/Goal.Global!$K5*Goal.Global!$L5*(1-$B5)-I5 -> 0.0000 | K5: =K4+H5/Goal.Global!$K5*Goal.Global!$L5*($B5) -> 0.0000 | L5: =L4+H5/Goal.Global!$K5*Goal.Global!$L5-I5 -> 0.0000 | M5: 0 | O5: =O4+M5/Goal.Global!$K5*Goal.Global!$L5-N5 -> 0.0000 | P5: =C5+H5+M5 -> 10 | Q5: 0.0000 | R5: 0.2682 | S5: 0.0268
A6: 3 | B6: 10.00% | C6: 10 | E6: =E5+C6/Goal.Global!$K6*Goal.Global!$L6*(1-$B6)-D6 -> 0.2452 | F6: =F5+C6/Goal.Global!$K6*Goal.Global!$L6*($B6) -> 0.0272 | G6: 0.2725 | H6: 5 | J6: =J5+H6/Goal.Global!$K6*Goal.Global!$L6*(1-$B6)-I6 -> 0.0019 | K6: =K5+H6/Goal.Global!$K6*Goal.Global!$L6*($B6) -> 0.0002 | L6: =L5+H6/Goal.Global!$K6*Goal.Global!$L6-I6 -> 0.0021 | M6: 0 | O6: =O5+M6/Goal.Global!$K6*Goal.Global!$L6-N6 -> 0.0000 | P6: =C6+H6+M6 -> 15 | Q6: 0.0000 | R6: 0.2746 | S6: 0.0275
A7: 4 | B7: 10.00% | C7: 10 | D7: 0.1000 | E7: =E6+C7/Goal.Global!$K7*Goal.Global!$L7*(1-$B7)-D7 -> 0.1552 | F7: =F6+C7/Goal.Global!$K7*Goal.Global!$L7*($B7) -> 0.0284 | G7: 0.1836 | H7: 5 | J7: =J6+H7/Goal.Global!$K7*Goal.Global!$L7*(1-$B7)-I7 -> 0.0069 | K7: =K6+H7/Goal.Global!$K7*Goal.Global!$L7*($B7) -> 0.0008 | L7: =L6+H7/Goal.Global!$K7*Goal.Global!$L7-I7 -> 0.0077 | M7: 0 | O7: =O6+M7/Goal.Global!$K7*Goal.Global!$L7-N7 -> 0.0000 | P7: =C7+H7+M7 -> 15 | Q7: 0.1000 | R7: 0.1913 | S7: 0.0291
A8: 5 | B8: 20.00% | C8: 10 | E8: =E7+C8/Goal.Global!$K8*Goal.Global!$L8*(1-$B8)-D8 -> 0.1675 | F8: =F7+C8/Goal.Global!$K8*Goal.Global!$L8*($B8) -> 0.0314 | G8: 0.1990 | H8: 5 | J8: =J7+H8/Goal.Global!$K8*Goal.Global!$L8*(1-$B8)-I8 -> 0.0131 | K8: =K7+H8/Goal.Global!$K8*Goal.Global!$L8*($B8) -> 0.0023 | L8: =L7+H8/Goal.Global!$K8*Goal.Global!$L8-I8 -> 0.0154 | M8: 0 | O8: =O7+M8/Goal.Global!$K8*Goal.Global!$L8-N8 -> 0.0000 | P8: =C8+H8+M8 -> 15 | Q8: 0.0000 | R8: 0.2143 | S8: 0.0337
G11: =Goal.Global!E19 -> 

Sheet Model.Global
A1: Block | B1: Validator 1 | K1: Validator 2 | T1: Validator 3 | AC1: Tot.Powr | AD1: gs.count | AE1: Fees
B2: Power | C2: PowerCount | D2: Adjustment | E2: Power Change Adj | F2: Withdraw | G2: Adjustment | H2: ProjectedPool | I2: SimplePool | J2: Pool | K2: Power | L2: PowerCount | M2: Adjustment | N2: Power Change Adj | O2: Withdraw | P2: Adjustment | Q2: ProjectedPool | R2: SimplePool | S2: Pool | T2: Power | U2: PowerCount | V2: Adjustment | W2: Power Change Adj | X2: Withdraw | Y2: Adjustment | Z2: ProjectedPool | AA2: SimplePool | AB2: Pool | AE2: IN | AF2: SUM IN | AG2: OUT | AH2: SUM OUT | AI2: TOTAL
A3: 0 | B3: =Model.Val1!AL3 -> 10 | C3: =B3*$A3 -> 0 | F3: =Model.Val1!AN3 -> 0.0 | K3: 20 | L3: =K3*$A3 -> 0 | T3: 30 | U3: =T3*$A3 -> 0 | AC3: =B3+K3+T3 -> 60 | AG3: =F3 -> 0.0
A4: 1 | B4: =Model.Val1!AL4 -> 10 | C4: 10 | D4: =B4*$A3-B3*$A3 -> 0 | F4: =Model.Val1!AM4 -> 0.0 | G4: =E4+F4+G3 -> 0.0 | I4: =(C4)/($AD4)*$AF4 -> 0.1028 | J4: =I4-G4 -> 0.1028 | K4: 20 | L4: 20 | M4: =K4*$A3-K3*$A3 -> 0 | O4: 0 | P4: =N4+O4+P3 -> 0 | R4: =(L4)/($AD4)*$AF4 -> 0.2057 | S4: =R4-P4 -> 0.2057 | T4: 30 | U4: 30 | V4: =T4*$A3-T3*$A3 -> 0 | X4: 0 | Y4: =W4+X4+Y3 -> 0 | AA4: =(U4)/($AD4)*$AF4 -> 0.3085 | AB4: =AA4-Y4 -> 0.3085 | AC4: 60 | AD4: =AC4*A4 -> 60.0000 | AE4: 0.6171 | AF4: =AE4+AF3-AK4 -> 0.6171 | AG4: 0.0 | AH4: =AG4+AH3 -> 0.0 | AI4: =AF4-AH4 -> 0.6171
A5: 2 | B5: =Model.Val1!AL5 -> 10 | C5: 20 | D5: 0 | E5: =I5-H5 -> 0 | F5: =Model.Val1!AM5 -> 0.2 | G5: 0.2 | H5: =(C4)/($AD4)*$AF4 + B5/$AC5*$AE5 -> 0.2682 | I5: 0.2682 | J5: 0.0682 | K5: 20 | L5: 40 | M5: 0 | N5: =R5-Q5 -> 0.0000 | O5: 0 | P5: 0.0000 | Q5: =(L4)/($AD4)*$AF4 + K5/$AC5*$AE5 -> 0.5364 | R5: 0.5364 | S5: 0.5364 | T5: 30 | U5: 60 | V5: 0 | W5: =AA5-Z5 -> 0.0000 | X5: 0 | Y5: 0.0000 | Z5: =(U4)/($AD4)*$AF4 + T5/$AC5*$AE5 -> 0.8046 | AA5: 0.8046 | AB5: 0.8046 | AC5: 60 | AD5: 120.0000 | AE5: 0.9922 | AF5: 1.6093 | AG5: 0.2 | AH5: 0.2 | AI5: 1.4093
A6: 3 | B6: =Model.Val1!AL6 -> 15 | C6: 45 | D6: 0 | E6: 0.1032 | F6: =Model.Val1!AM6 -> 0.0 | G6: 0.3032 | H6: 0.2746 | I6: 0.3778 | J6: 0.0746 | K6: 20 | L6: 60 | M6: 0 | N6: -0.0413 | O6: 0 | P6: -0.0413 | Q6: 0.5449 | R6: 0.5037 | S6: 0.5449 | T6: 30 | U6: 90 | V6: 0 | W6: -0.0619 | X6: 0 | Y6: -0.0619 | Z6: 0.8174 | AA6: 0.7555 | AB6: 0.8174 | AC6: 65 | AD6: 195.0000 | AE6: 0.0277 | AF6: 1.6369 | AG6: 0.0 | AH6: 0.2 | AI6: 1.4369
A7: 4 | B7: =Model.Val1!AL7 -> 15 | C7: 60 | D7: =B7*$A6-B6*$A6 -> 0 | E7: 0.0000 | F7: =Model.Val1!AM7 -> 0.1 | G7: 0.4032 | H7: 0.3944 | I7: 0.3944 | J7: -0.0087 | K7: 20 | L7: 80 | M7: =K7*$A6-K6*$A6 -> 0 | N7: 0.0000 | O7: 0 | P7: -0.0413 | Q7: 0.5259 | R7: 0.5259 | S7: 0.5672 | T7: 30 | U7: 120 | V7: =T7*$A6-T6*$A6 -> 0 | W7: 0.0000 | X7: 0 | Y7: -0.0619 | Z7: 0.7889 | AA7: 0.7889 | AB7: 0.8507 | AC7: 65 | AD7: 260.0000 | AE7: 0.0723 | AF7: 1.7092 | AG7: 0.1 | AH7: 0.3 | AI7: 1.4092
A8: 5 | B8: =Model.Val1!AL8 -> 15 | C8: 75 | D8: 0 | E8: 0.0000 | F8: =Model.Val1!AM8 -> 0.0 | G8: 0.4032 | H8: 0.4175 | I8: 0.4175 | J8: 0.0143 | K8: 20 | L8: 100 | M8: 0 | N8: 0.0000 | O8: 0 | P8: -0.0413 | Q8: 0.5567 | R8: 0.5567 | S8: 0.5979 | T8: 30 | U8: 150 | V8: 0 | W8: 0.0000 | X8: 0 | Y8: -0.0619 | Z8: 0.8350 | AA8: 0.8350 | AB8: 0.8969 | AC8: 65 | AD8: 325.0000 | AE8: 0.1000 | AF8: 1.8092 | AG8: 0.0 | AH8: 0.3 | AI8: 1.5092

Sheet Model.Val1
B1: Validator 1 | K1: Delegator 1 | T1: Delegator 2 | AC1: Delegator 3 | AL1: SUM POWER | AM1: SUM WITHDRAW | AN1: SUM POOL
A2: Block | B2: Commission | C2: Eq. Comm Shares | D2: Eq Comm Shares SUM | E2: Proj Comm Pool | F2: Simple Comm Pool | G2: Adjustment | H2: Comm Withdraw | I2: Adj SUM | J2: Comm Pool | K2: Issued Shares | L2: Eqv. Shares | M2: Eq Comm Shares SUM | N2: Proj Del Pool | O2: Simple Del1 Pool | P2: Adjustment | Q2: Withdrawal | R2: Total Adjustment | S2: Del Pool | T2: Issued Shares | U2: Eqv. Shares | V2: Eq Comm Shares SUM | W2: Proj Del Pool | X2: Simple Del1 Pool | Y2: Adjustment | Z2: Withdrawal | AA2: Total Adjustment | AB2: Del Pool | AC2: Issued Shares | AD2: Eqv. Shares | AE2: Eq Comm Shares SUM | AF2: Proj Del Pool | AG2: Simple Del1 Pool | AH2: Adjustment | AI2: Withdrawal | AJ2: Total Adjustment | AK2: Del Pool
A3: 0 | B3: 0.10 | C3: =$AL3*$B3 -> 1.0 | D3: =C3*A3 -> 0.0 | K3: 10 | L3: =K3*(1-$B3) -> 9.0 | M3: =$A3*L3 -> 0.0 | T3: 0 | U3: =T3*(1-$B3) -> 0.0 | V3: =$A3*U3 -> 0.0 | AC3: 0 | AD3: =AC3*(1-$B3) -> 0.0 | AE3: =$A3*AD3 -> 0.0 | AL3: =K3+T3+AC3 -> 10 | AM3: =H3+Q3+Z3+AI3 -> 0.000 | AN3: =J3+AB3+AK3+S3 -> 0 | AO3: =AN3=Model.Global!J3 -> TRUE
A4: 1 | B4: 0.10 | C4: 1.0 | D4: 1.0 | F4: =(D4)/(Model.Global!$AD4)*Model.Global!$AF4 -> 0.0103 | I4: =I3+G4+H4 -> 0.0000 | J4: =F4-I4 -> 0.0103 | K4: =K3 -> 10 | L4: 9.0 | M4: 9.0 | O4: =(M4)/(Model.Global!$AD4)*Model.Global!$AF4 -> 0.0926 | R4: =R3+P4+Q4 -> 0.0000 | S4: =O4-R4 -> 0.0926 | T4: 0 | U4: 0.0 | V4: 0.0 | X4: =(V4)/(Model.Global!$AD4)*Model.Global!$AF4 -> 0.0000 | AA4: =AA3+Y4+Z4 -> 0.0000 | AB4: =X4-AA4 -> 0.0000 | AC4: 0 | AD4: 0.0 | AE4: 0.0 | AG4: =(AE4)/(Model.Global!$AD4)*Model.Global!$AF4 -> 0.0000 | AJ4: =AJ3+AH4+AI4 -> 0.0000 | AK4: =AG4-AJ4 -> 0.0000 | AL4: 10 | AM4: 0.000 | AN4: 0.1028 | AO4: =AN4=Model.Global!J4 -> TRUE
A5: 2 | B5: 0.10 | C5: 1.0 | D5: 2.0 | E5: =D4/(Model.Global!$AD4)*Model.Global!$AF4 + C5/Model.Global!$AC5*Model.Global!$AE5 -> 0.0268 | F5: =(D5)/(Model.Global!$AD5)*Model.Global!$AF5 -> 0.0268 | G5: =F5-E5 -> 0.0000 | H5: 0 | I5: 0.2000 | J5: -0.1732 | K5: 10 | L5: 9.0 | M5: 18.0 | N5: =M4/(Model.Global!$AD4)*Model.Global!$AF4 + L5/Model.Global!$AC5*Model.Global!$AE5 -> 0.2414 | O5: =(M5)/(Model.Global!$AD5)*Model.Global!$AF5 -> 0.2414 | P5: =O5-N5 -> 0.0000 | R5: 0.0000 | S5: 0.2414 | T5: 0 | U5: 0.0 | V5: 0.0 | W5: =V4/(Model.Global!$AD4)*Model.Global!$AF4 + U5/Model.Global!$AC5*Model.Global!$AE5 -> 0.0000 | X5: =(V5)/(Model.Global!$AD5)*Model.Global!$AF5 -> 0.0000 | Y5: =X5-W5 -> 0.0000 | AA5: 0.0000 | AB5: 0.0000 | AC5: 0 | AD5: 0.0 | AE5: 0.0 | AF5: =AE4/(Model.Global!$AD4)*Model.Global!$AF4 + AD5/Model.Global!$AC5*Model.Global!$AE5 -> 0.0000 | AG5: =(AE5)/(Model.Global!$AD5)*Model.Global!$AF5 -> 0.0000 | AH5: =AG5-AF5 -> 0.0000 | AJ5: 0.0000 | AK5: 0.0000 | AL5: 10 | AM5: 0.200 | AN5: 0.0682 | AO5: =AN5=Model.Global!J5 -> TRUE
A6: 3 | B6: 0.10 | C6: 1.5 | D6: 4.5 | E6: =D5/(Model.Global!$AD5)*Model.Global!$AF5 + C6/Model.Global!$AC6*Model.Global!$AE6 -> 0.0275 | F6: =(D6)/(Model.Global!$AD6)*Model.Global!$AF6 -> 0.0378 | G6: 0.01032 | I6: 0.2103 | J6: -0.1725 | K6: 10 | L6: 9.0 | M6: 27.0 | N6: =M5/(Model.Global!$AD5)*Model.Global!$AF5 + L6/Model.Global!$AC6*Model.Global!$AE6 -> 0.2452 | O6: =(M6)/(Model.Global!$AD6)*Model.Global!$AF6 -> 0.2267 | P6: -0.0186 | R6: -0.0186 | S6: 0.2452 | T6: 5 | U6: 4.5 | V6: 13.5 | W6: =V5/(Model.Global!$AD5)*Model.Global!$AF5 + U6/Model.Global!$AC6*Model.Global!$AE6 -> 0.0019 | X6: =(V6)/(Model.Global!$AD6)*Model.Global!$AF6 -> 0.1133 | Y6: 0.1114 | AA6: 0.1114 | AB6: 0.0019 | AC6: 0 | AD6: 0.0 | AE6: 0.0 | AF6: =AE5/(Model.Global!$AD5)*Model.Global!$AF5 + AD6/Model.Global!$AC6*Model.Global!$AE6 -> 0.0000 | AG6: =(AE6)/(Model.Global!$AD6)*Model.Global!$AF6 -> 0.0000 | AH6: 0.0000 | AJ6: 0.0000 | AK6: 0.0000 | AL6: 15 | AM6: 0.000 | AN6: 0.0746 | AO6: =AN6=Model.Global!J6 -> TRUE
A7: 4 | B7: 0.10 | C7: 1.5 | D7: 6.0 | E7: =D6/(Model.Global!$AD6)*Model.Global!$AF6 + C7/Model.Global!$AC7*Model.Global!$AE7 -> 0.0394 | F7: =(D7)/(Model.Global!$AD7)*Model.Global!$AF7 -> 0.0394 | G7: 0.0000 | I7: 0.2103 | J7: -0.1709 | K7: 10 | L7: 9.0 | M7: 36.0 | N7: =M6/(Model.Global!$AD6)*Model.Global!$AF6 + L7/Model.Global!$AC7*Model.Global!$AE7 -> 0.2367 | O7: =(M7)/(Model.Global!$AD7)*Model.Global!$AF7 -> 0.2367 | P7: 0.0000 | Q7: 0.1000 | R7: 0.0814 | S7: 0.1552 | T7: 5 | U7: 4.5 | V7: 18.0 | W7: =V6/(Model.Global!$AD6)*Model.Global!$AF6 + U7/Model.Global!$AC7*Model.Global!$AE7 -> 0.1183 | X7: =(V7)/(Model.Global!$AD7)*Model.Global!$AF7 -> 0.1183 | Y7: 0.0000 | AA7: 0.1114 | AB7: 0.0069 | AC7: 0 | AD7: 0.0 | AE7: 0.0 | AF7: =AE6/(Model.Global!$AD6)*Model.Global!$AF6 + AD7/Model.Global!$AC7*Model.Global!$AE7 -> 0.0000 | AG7: =(AE7)/(Model.Global!$AD7)*Model.Global!$AF7 -> 0.0000 | AH7: 0.0000 | AJ7: 0.0000 | AK7: 0.0000 | AL7: 15 | AM7: 0.100 | AN7: -0.0087 | AO7: =AN7=Model.Global!J7 -> FALSE
A8: 5 | B8: 0.10 | C8: 1.5 | D8: 7.5 | E8: =D7/(Model.Global!$AD7)*Model.Global!$AF7 + C8/Model.Global!$AC8*Model.Global!$AE8 -> 0.0418 | F8: =(D8)/(Model.Global!$AD8)*Model.Global!$AF8 -> 0.0418 | G8: 0.0000 | I8: 0.2103 | J8: -0.1686 | K8: 10 | L8: 9.0 | M8: 45.0 | N8: =M7/(Model.Global!$AD7)*Model.Global!$AF7 + L8/Model.Global!$AC8*Model.Global!$AE8 -> 0.2505 | O8: =(M8)/(Model.Global!$AD8)*Model.Global!$AF8 -> 0.2505 | P8: 0.0000 | R8: 0.0814 | S8: 0.1691 | T8: 5 | U8: 4.5 | V8: 22.5 | W8: =V7/(Model.Global!$AD7)*Model.Global!$AF7 + U8/Model.Global!$AC8*Model.Global!$AE8 -> 0.1253 | X8: =(V8)/(Model.Global!$AD8)*Model.Global!$AF8 -> 0.1253 | Y8: 0.0000 | AA8: 0.1114 | AB8: 0.0138 | AC8: 0 | AD8: 0.0 | AE8: 0.0 | AF8: =AE7/(Model.Global!$AD7)*Model.Global!$AF7 + AD8/Model.Global!$AC8*Model.Global!$AE8 -> 0.0000 | AG8: =(AE8)/(Model.Global!$AD8)*Model.Global!$AF8 -> 0.0000 | AH8: 0.0000 | AJ8: 0.0000 | AK8: 0.0000 | AL8: 15 | AM8: 0.000 | AN8: 0.0143 | AO8: =AN8=Model.Global!J8 -> TRUE
